Cogmind - Beta 15 @@@ ROGUE MODE // 2025.05.21 @ 19:05:26 Player: celerysam Result: Destroyed by Y-45 Defender with Beam Rifle Performance ------------- Evolutions (0) 0 Regions Visited (2) 400 Robots Destroyed (20) 100 Value Destroyed (538) 538 Prototype IDs (0) 0 Alien Tech Used (0) 0 Bonus (0) 0 TOTAL SCORE: 1038 Bonus ------- None Cogmind --------- Core Integrity 0/250 Matter 222/300 Energy 98/125 System Corruption 0% Temperature Cool (9) Movement Rolling (110) Location -10/Subcaves Parts ------- > --- POWER (1) -------- Light Ion Engine > --- PROPULSION (2) --- Subdweller Monowheel Subdweller Monowheel > --- UTILITY (2) ------ Improved Heat Sink Large Storage Unit > --- WEAPON (2) ------- Particle Gun Subdweller Beam Cannon > --- INVENTORY (15) --- Subdweller Power Source Light Nuclear Core Light Treads Light Treads Heat Sink Small Storage Unit Structural Scanner ECM Suite Utility Shielding Medium Laser Particle Gun Grenade Launcher Datajack Makeshift Spear Peak State ------------ > --- POWER ------------ Light Ion Engine > --- PROPULSION ------- Subdweller Monowheel Subdweller Monowheel > --- UTILITY ---------- Improved Heat Sink Large Storage Unit > --- WEAPON ----------- Subdweller Beam Cannon Makeshift Spear > --- INVENTORY -------- Subdweller Power Source Light Nuclear Core Light Treads Light Treads Subdweller Monowheel Heat Sink Small Storage Unit Structural Scanner ECM Suite Utility Shielding Medium Laser Particle Gun Particle Gun Grenade Launcher Datajack [Rating: 17] Favorites ----------- Power Ion Engine Engine Ion Engine Propulsion Wheel Leg Aluminum Leg Wheel Wheel Utility Large Storage Unit Device Improved Heat Sink Storage Large Storage Unit Processor Targeting Computer Weapon Assault Rifle Energy Gun Particle Gun Energy Cannon Subdweller Beam Cannon Ballistic Gun Assault Rifle Launcher Grenade Launcher Piercing Weapon Makeshift Spear Build | -11 -10 -10 ------- Run | Yrd Mat Sub Slots Evolved . | . . . Power . | . . . Propulsion . | . . . Utility . | . . . Weapon . | . . . Parts Attached 26 | 6 10 10 Power 4 | 1 2 1 Engine 4 | 1 2 1 Core . | . . . Reactor . | . . . Propulsion 7 | 2 2 3 Treads . | . . . Leg 2 | 2 . . Wheel 5 | . 2 3 Hover . | . . . Flight . | . . . Utility 6 | 1 4 1 Device 3 | . 2 1 Storage 2 | 1 1 . Processor 1 | . 1 . Hackware . | . . . Protection . | . . . Artifact . | . . . Weapon 9 | 2 2 5 Energy Gun 4 | . 2 2 Energy Cannon 1 | . . 1 Ballistic Gun 2 | 2 . . Ballistic Cannon . | . . . Launcher 1 | . . 1 Special Weapon . | . . . Impact Weapon . | . . . Slashing Weapon . | . . . Piercing Weapon 1 | . . 1 Special Melee Weapon . | . . . Unidentified Prototypes . | . . . Parts Lost 6 | . 2 4 Power 1 | . 1 . Propulsion 2 | . . 2 Utility 1 | . 1 . Weapon 2 | . . 2 Highest Loss Streak 3 | . 2 3 To Critical Strikes . | . . . Average Backups 12 | 4 11 14 Power 1 | . 1 2 Propulsion 2 | 3 3 2 Utility 3 | . 3 5 Weapon 3 | . 3 3 Tool/Special . | . . . Unused Backups 8 | . 1 7 Power 2 | . . 2 Propulsion 2 | . . 2 Utility 2 | . . 2 Weapon 1 | . 1 . Tool/Special 1 | . . 1 Average Slot Usage (%) 95 | . 96 94 Engine 13 | . 13 14 Leg 4 | . 7 . Wheel 21 | . 21 22 Device 6 | . 2 14 Storage 14 | . 14 14 Processor 5 | . 8 . Energy Gun 6 | . 3 11 Energy Cannon 4 | . . 12 Ballistic Gun 15 | . 24 1 Peak Build Rating 17 | 6 9 17 Average Rating 9 | 3 7 13 On Entrance 5 | . 6 9 Naked Turns . | . . . Heaviest Build 37 | 12 30 37 Greatest Support 40 | 20 20 40 Greatest Overweight (x) 3 | 1 1 3 Average Overweight (x) . | . . . Largest Inventory Capacity 15 | 8 15 15 Average Capacity 13 | 6 13 15 Most Carried 15 | 7 15 15 Average Carried 12 | 5 12 14 Final Capacity 15 | 8 15 15 Final Carried 14 | 6 14 14 Class Distribution -------------------- 77% | Mutant 22% | Scavenger-Mutant Dominant Class ---------------- Mutant | -10/Materials Scavenger-Mutant | -10/Subcaves Resources | -11 -10 -10 ----------- Run | Yrd Mat Sub Matter Collected 607 | 182 212 213 Remotely . | . . . Salvage Created 544 | . 346 198 Parts 40 | . 26 14 Haulers Intercepted . | . . . Recyclers Shooed . | . . . Parts Field Recycled . | . . . Retrieved Matter . | . . . Parts Self-Destructed 16 | . . 16 Prevented . | . . . Kills | -11 -10 -10 ------- Run | Yrd Mat Sub Combat Hostiles Destroyed 17 | . 11 6 Guns 12 | . 11 1 Cannons 3 | . . 3 AOE 2 | . . 2 Classes Destroyed 4 | . 3 1 Watcher 3 | . 3 . Swarmer 6 | . 6 . Grunt 6 | . 5 1 Subdweller 5 | . . 5 Best Kill Streak 3 | . 3 2 Combat Bots Only 3 | . 3 2 Max Kills in Single Turn 2 | . 1 2 Gunslinging . | . . . Exploded 2 | . . 2 Melee . | . . . Uniques/NPCs Destroyed . | . . . Combat | -11 -10 -10 -------- Run | Yrd Mat Sub Hostile Shots Fired 103 | . 66 37 Missed 43 | . 25 18 Hits 60 | . 41 19 Projectile 60 | . 41 19 Critical Strikes 1 | . . 1 Damage Taken 867 | . 477 390 Core 260 | . 101 159 Absorbed by Shields . | . . . Core Remaining (%) 100 | 100 . . Volleys Fired 61 | . 40 21 Largest 2 | . 2 2 Hottest 145 | . 100 145 Shots Fired 120 | . 80 40 Gun 102 | . 80 22 Cannon 17 | . . 17 Launcher 1 | . . 1 Special . | . . . Kinetic 75 | . 70 5 Thermal 44 | . 10 34 Explosive 1 | . . 1 Electromagnetic . | . . . Robot Hit Streak 9 | . 9 7 Robot Miss Streak 5 | . 5 2 Penetration Max . | . . . Secondary Targets 2 | . 2 . Max Gunslinging Chain 1 | . 1 . Shots Hit Robots 72 | . 43 29 Core Hits 31 | . 20 11 Critical Kills . | . . . Critical Parts Destroyed . | . . . Critical Strikes 1 | . . 1 Burn 1 | . . 1 Melee Attacks 3 | . . 3 Impact . | . . . Slashing . | . . . Piercing 3 | . . 3 Sneak Attacks . | . . . Combat Hostiles . | . . . Follow-up Attacks . | . . . Damage Inflicted 1208 | . 549 659 Guns 830 | . 549 281 Cannons 277 | . . 277 Explosions 101 | . . 101 Melee . | . . . Ramming . | . . . Kinetic 534 | . 485 49 Thermal 573 | . 64 509 Explosive 101 | . . 101 Electromagnetic . | . . . Impact . | . . . Slashing . | . . . Piercing . | . . . Highest Corruption . | . . . Average Corruption . | . . . Corruption Purged . | . . . Corruption Blocked . | . . . Overload Shots . | . . . Overflow Damage 15 | . . 15 Projectiles 15 | . . 15 Explosions . | . . . Melee . | . . . Knockbacks . | . . . Impact . | . . . Kinetic . | . . . Secondary . | . . . Self-Inflicted Damage . | . . . Shots . | . . . Rammed . | . . . Targets Rammed . | . . . Kicked . | . . . Crushed . | . . . Highest Temperature 45 | . 45 21 Average Temperature 17 | . 19 10 Received Heat Transfer 228 | . 84 144 Siege Activations . | . . . Martial Activations . | . . . Shielding Activations . | . . . Robots Disrupted . | . . . Combat Hostiles . | . . . Robots Corrupted . | . . . Combat Hostiles . | . . . Parts Fried . | . . . Impact Corruptions . | . . . Robots Melted . | . . . Combat Hostiles . | . . . Parts Melted 1 | . 1 . Heat Transferred 1147 | . 185 962 Parts Sabotaged . | . . . Parts Stolen . | . . . Parts Stripped . | . . . Power Chain Reactions . | . . . Alert | -11 -10 -10 ------- Run | Yrd Mat Sub Maximum Alert Level . | . . . Low Security (%) 100 | 100 100 . Level 1 . | . . . Level 2 . | . . . Level 3 . | . . . Level 4 . | . . . Level 5 . | . . . High Security . | . . . Max Security . | . . . Peak Influence 103 | . 103 . Initial . | . . . Average 32 | . 35 . Influence Increases 332 | . 312 20 Destroy 0b10 Robot/C 240 | . 220 20 Destroy 0b10 Robot/NC 15 | . 15 . Destroy Leader 56 | . 56 . Successful Hack 5 | . 5 . Destroy Structure 1 | . 1 . Lose Combat Pursuer 15 | . 15 . Influence Decreases 320 | . 294 26 Entered New Map 10 | . . 10 Time Decay 282 | . 274 8 Lost Part 28 | . 20 8 Squads Dispatched 1 | . 1 . Investigation . | . . . Extermination . | . . . Reinforcement 1 | . 1 . Assault . | . . . Garrison . | . . . Intercept . | . . . Searches Triggered . | . . . Construction Impeded . | . . . Haulers Reinforced . | . . . Active Scanning Responses . | . . . Cargo Convoy Interrupts . | . . . Stealth | -11 -10 -10 --------- Run | Yrd Mat Sub Distress Signals 2 | . 2 . Communications Jammed . | . . . Distress Signals . | . . . Times Spotted 24 | . 17 7 Peak Tracking Total 4 | . 4 2 Tactical Retreats 1 | . 1 . Traps | -11 -10 -10 ------- Run | Yrd Mat Sub Traps Triggered 1 | . 1 . Indirectly . | . . . Trap Hack Attempts . | . . . Triggered . | . . . Disarmed . | . . . Reprogrammed . | . . . Reused . | . . . Traps Extracted . | . . . Installed . | . . . Triggered . | . . . Machines | -11 -10 -10 ---------- Run | Yrd Mat Sub Machines Disabled . | . . . Max in Single Turn . | . . . Machines Repaired . | . . . Machines Dismantled . | . . . Machines Sabotaged . | . . . Overloaded Fab Kills . | . . . Hacking | -11 -10 -10 --------- Run | Yrd Mat Sub Machines Accessed 2 | . 1 1 Terminals 1 | . 1 . Fabricators . | . . . Repair Stations . | . . . Recycling Units . | . . . Scanalyzers . | . . . Garrison Access . | . . . Total Hacks 6 | . 2 4 Successful 5 | . 1 4 Failed 1 | . 1 . Catastrophic . | . . . Database Lockouts . | . . . Manual 2 | . 2 . Terminals 2 | . 2 . Fabricators . | . . . Repair Stations . | . . . Recycling Units . | . . . Scanalyzers . | . . . Garrison Access . | . . . Terminal Hacks 4 | . . 4 Record 4 | . . 4 Fabricator Hacks . | . . . Repair Station Hacks . | . . . Recycling Unit Hacks . | . . . Scanalyzer . | . . . Garrison Access Hacks . | . . . Unauthorized Hacks 1 | . 1 . Terminals 1 | . 1 . Botnet 1 | . 1 . Fabricators . | . . . Repair Stations . | . . . Recycling Units . | . . . Scanalyzers . | . . . Garrison Access . | . . . Data Cores Recovered . | . . . Used . | . . . Hacking Detections 1 | . 1 . Full Trace Events . | . . . Feedback Events . | . . . Feedback Blocked . | . . . Robot Schematics Acquired . | . . . Robots Built . | . . . Authchips . | . . . Time . | . . . Total Robot Build Rating . | . . . Part Schematics Acquired . | . . . Parts Built . | . . . Authchips . | . . . Time . | . . . Total Part Build Rating . | . . . Parts Repaired . | . . . Time . | . . . Parts Recycled . | . . . Recycled Matter . | . . . Retrieved Matter . | . . . Retrieved Components . | . . . Parts Scanalyzed . | . . . Part Schematics Acquired . | . . . Parts Damaged . | . . . Bothacking | -11 -10 -10 ------------ Run | Yrd Mat Sub Used RIF Installer . | . . . Robots Hacked . | . . . Non-combat . | . . . Combat . | . . . Robot Hacks Applied . | . . . Relay Couplers Released . | . . . Fabnet Peak Effective % . | . . . Robots Rewired . | . . . Allies Hacked . | . . . Hacks Repelled . | . . . Allies | -11 -10 -10 -------- Run | Yrd Mat Sub Total Allies . | . . . Largest Group . | . . . Highest-Rated Group . | . . . Highest-Rated Ally . | . . . Total Orders . | . . . Ally Attacks . | . . . Total Damage . | . . . Kills . | . . . Allies Corrupted . | . . . Allies Melted . | . . . Intel | -11 -10 -10 ------- Run | Yrd Mat Sub Active Infowar (turns) 33 | . 1 32 Structural 33 | . 1 32 Robot Analysis Total . | . . . Derelict Logs Recovered 3 | . . 3 Drone Launches . | . . . Drone Recoveries . | . . . Exploration | -11 -10 -10 ------------- Run | Yrd Mat Sub Turns Passed 1201 | 67 709 425 Spaces Moved 851 | 53 503 295 Core 19 | 19 . . Treads . | . . . Legs 127 | 34 93 . Wheels 705 | . 410 295 Hover . | . . . Flight . | . . . Fastest Speed 50 | 50 95 95 Average Speed 104 | 97 99 113 Slowest Speed 125 | 120 120 125 Overloaded Moves . | . . . Propulsion Burnouts . | . . . Robots Hopped . | . . . Potential Cave-ins . | . . . Cave-ins Triggered . | . . . Exploration Rate (%) 37 | 5 80 28 Regions Visited 2 Branch Regions 1 Pre-discovered Areas 2 | . . 2 Known Exits Taken . | . . . Unknown Exits Taken 2 | 1 1 . Scrap Searched . | . . . Spaces Dug . | . . . Terrain Destroyed 7 | . . 7 Melee . | . . . Projectile 3 | . . 3 AOE 4 | . . 4 Terrain Rammed . | . . . Walls Destroyed . | . . . Machines Disabled . | . . . Actions | -11 -10 -10 --------- Run | Yrd Mat Sub Total 1040 | 66 633 341 Wait 61 | . 56 5 Move 849 | 52 502 295 Hop . | . . . Pick Up 28 | 8 15 5 Fast Attach 6 | 4 1 1 Attach 8 | 2 3 3 Detach 1 | . 1 . Swap 14 | . 8 6 Drop 9 | . 7 2 Fire 61 | . 40 21 Melee 3 | . . 3 Ram . | . . . Kick . | . . . Crush . | . . . Escape Stasis . | . . . Rewire . | . . . Trap . | . . . Miscellaneous . | . . . Route ------- -11/Scrapyard -10/Materials (discovered 5 exits: [*Mat x3] / [*Min] / *Sub) -10/Subcaves (discovered 2 exits: *Mat x2) History --------- Turn | Location | Event 19 | -11/Scrapyard | Discovered new exit (range 14) 68 | -11/Scrapyard | Entered Materials 213 | -10/Materials | Discovered new exit (range 12) 305 | -10/Materials | Build established: Mutant 313 | -10/Materials | Discovered new exit (range 10) 424 | -10/Materials | Discovered new exit (range 16) 459 | -10/Materials | Discovered new exit (range 7) 728 | -10/Materials | Discovered new exit (range 15) 777 | -10/Materials | Entered Subcaves 789 | -10/Subcaves | Core integrity fell below 50% 827 | -10/Subcaves | Lost 3 parts (1n2w) 857 | -10/Subcaves | Visited Clippyterm 861 | -10/Subcaves | Learned Factory trap positions 874 | -10/Subcaves | Identified exit to Materials 882 | -10/Subcaves | Shifting Twisted Machinery released Mak. Spear 901 | -10/Subcaves | Discovered exit to Materials (range 10) 1012 | -10/Subcaves | Core integrity fell below 20% 1046 | -10/Subcaves | Learned location of Zion (-7) 1046 | -10/Subcaves | Met a Zionite searching for "candidates" 1132 | -10/Subcaves | A swath of the cavern ceiling suddenly collapsed 1140 | -10/Subcaves | Learned Materials stockpile data 1202 | -10/Subcaves | Destroyed by Y-45 Defender with Beam Rifle Last Messages --------------- 01016_ Acquired 35 matter. 01036_ Sub. Monowheel shoots sparks and powers down. 01038_ Dropped Broken Sub. Monowheel. 01039_ 81-KE8(z): "She is not going to be happy we haven't found any suitable candidates yet." 01046_ 81-KE8(z): "Hey you! It's really dangerous down here, I feel that you could die at any moment. For your health and safety might I suggest a trip to Zion?" World map updated: -7/Zion. 01132_ 11 Matter crushed. A swath of the cavern ceiling suddenly collapses. 01140_ Acquired derelict log, extracted data. Data stored: Materials stockpile data. 01144_ Acquired 10 matter. 01184_ Critical hit (Burn: +37). 01188_ G-34 Mercenary destroyed. 01201_ Destroyed Heat Sink. Map ----- +----------------------------------------------------+ | ???????????????????????????# ???????????????? | | ??????????????????????????? #??????????????? | | ?????????????????????????? #??????????????? | | ??????????????????????# ?? ##?????????????? | | ????????????????????## ?? #?????????????? | | ????????????????????# ? #?????????????? | | ????????????????????# ?? #?????????????? | | ?????????????????#### ??? #??##?????????? | | ????????????????? ???# ### ###???????? | | ?????????????????# # #??## ###?????? | | ?????????????????# # #### #?????? | | ???????????? ???## # # #? ###??? | | ????????????? ??# # ## #??# ##?? | | ????????????## ## #??# ## | | ????????????# #< #### # # | | ????????????# | | ????????????# | | ??????????????#" ### #?? | | ??????????????###< ## ##?# #?? | | ????????????????# ## #?## ## ### | | ????????????????## ##?###### ## ## | | ???????????????### ###???# ### | | ???????????????# #???####?# | | ???????????????# #### #???????## # | | ???????????????## ##?? #????????###### | | ????????????????## @ ##?? #?????????????? | | ???????????####### #?? ?????????????? | | ???????????# ## # #??? #????????????? | | ?????????????# ## ##Y ##??? #??#?????????? | | ????????????## # ;#???? #?????????? | | ????????????# # ##???? #?????????? | | ????????????# # # ##?? #?????????? | | ??????????????# #### # #?????????? | | ?????????????## ##?# #???????????????? | | ?????????????# #### ##???????????????? | | ?????????????## #### ##????????????????? | | ??????????????# "#?? #?????????????????? | | ??????????????## #"## ? #????????????????? | | ???????????????###"""# " #????????????????? | | ?????????????????##"#### #????????????????? | | ?????????????????#"#"# #? ###????????????????? | | ?????????????????###"###?##??????????????????? | | ???????????????????#""##?????????????????????? | | ???????????????????##"##?????????????????????? | | ???????????????????##""#?????????????????????? | | ??????????????????##"""#?????????????????????? | | ??????????????????#"""## ????????????????????? | | ??????????????????##"## ?????????????????????? | | ???????????????????##????????????????????????? | | ?????????????????????????????????????????????? | +----------------------------------------------------+ Best States ------------- Heat Dissipation 39 Energy Generation 10 Energy Capacity 250 Matter Stores 236 Matter Capacity 300 Sight Range 16 Terrain Scan Density 10 Evasion (%) 55 Targeting Accuracy 5 Item Schematics ----------------- None Robot Schematics ------------------ None Fabricated ------------ Nothing Repaired ---------- Nothing Alien Tech Used ----------------- None Achievements -------------- None Challenges ------------ None Game ------ Seed ExperimentalSwarmSaw Manual? 0 Play Time 00:12:24 Cumulative 256.1 hours Start 2025.05.21 @ 18:45:52 End 2025.05.21 @ 19:05:26 Sessions 1 Manual Loads 0 Difficulty Rogue Special Mode None Game No. 382 Rogue 382 Adventurer 0 Explorer 0 Win Type - Total 1 Types 1/0/0/0/0/0/0/0/0/0 Lore% 61 Gallery% 62 Achievement% 43 Wizard Run 0 Options --------- Layout 1 ASCII 0 Keyboard 0 Movement Mouse Keybinds 0 Fullscreen 2 Font 24/Smallcaps Map View 50x35 Zoom Use 0% Tactical HUD 1 Map Filters NONE Filters NONE Steam 1 RUN: 86f6cc85-9287-46a2-ab1b-160cd3f92c7b